fUSD/lending_fUSD_20240904
["ID","MTS","AMOUNT","RATE_DAILY","PERIOD"]
[337142565,1725453736349,-251.0,0.00041069,120]
[337142566,1725453736372,-360.22762147,0.00041078,120]
[337142567,1725453736396,-1199.13358965,0.00041085,120]
[337142568,1725453736420,-1609.31692402,0.00041095,30]
[337142569,1725453736447,-457.57196242,0.00041095,120]
[337142570,1725453736470,-500.0,0.00041095,120]
[337142571,1725453736494,-500.0,0.00041095,120]
[337142572,1725453736518,-500.0,0.00041095,120]
[337142573,1725453736542,-500.0,0.00041095,120]
[337142574,1725453736565,-500.0,0.00041095,120]
[337142575,1725453736588,-437.6516578,0.00041095,120]
[337142576,1725453736611,-586.70959073,0.00041095,120]
[337142577,1725453736635,-515.38188357,0.00041095,30]
[337142578,1725453736660,-1000.0,0.00041095,120]
[337142579,1725453736685,-1000.0,0.00041095,120]
[337142580,1725453736710,-253.35657511,0.00041095,120]
[337142581,1725453736737,-16881.56041957,0.000411,30]
[337142582,1725453736761,-460.0,0.00041111,90]
[337142583,1725453736784,-173.96,0.00041123,30]
[337142584,1725453736807,-434.11317742,0.000414,120]
[337142585,1725453736831,-400000.0,0.0004144,30]
[337142586,1725453736856,-150.0,0.00041441,120]
[337142587,1725453736880,-151.0,0.00041507,120]
[337142588,1725453736904,-195.43491603,0.000416,120]
[337142589,1725453736928,-500.0,0.00041615,120]
[337142590,1725453736960,-150.0,0.00041637,120]
[337142591,1725453736985,-500.0,0.00041643,120]
[337142592,1725453737009,-503.24744787,0.00041643,120]
[337142593,1725453737034,-150.0,0.00041729,120]
[337142594,1725453737058,-2000.0,0.00041753,120]
[337142595,1725453737082,-156.9045,0.00041888,30]
[337142596,1725453737106,-702.22479921,0.00041898,120]
[337142597,1725453737129,-605.45861929,0.00041898,90]
[337142598,1725453737153,-822.89138409,0.00041898,90]
[337142599,1725453737180,-50000.0,0.00042,32]
[337142600,1725453737210,-50000.0,0.00042,42]
[337142601,1725453737234,-900.0,0.00042,120]
[337142602,1725453737259,-2000.0,0.00042,120]
[337142603,1725453737282,-417.09630871,0.00042,120]
[337142604,1725453737307,-1000000.0,0.00042,120]
[337142605,1725453737333,-1000000.0,0.00042,120]
[337142606,1725453737358,-1000000.0,0.00042,120]
[337142607,1725453737383,-1000000.0,0.00042,120]
[337142608,1725453737407,-1000000.0,0.00042,120]
[337142609,1725453737434,-583137.79813701,0.00042,120]
[337142610,1725453741176,-416862.20186299,0.00042,120]
[337142611,1725453741200,-1381.88615489,0.00042,120]
[337142612,1725453741224,-200.0,0.00042,120]
[337142613,1725453741248,-26400.93282543,0.00042,30]
[337142614,1725453741271,-999999.99999802,0.00042,120]
[337142615,1725453741295,-1000000.0,0.00042,120]
[337142616,1725453741319,-61570.67011151,0.00042,120]
[337142617,1725453741341,-756.4712335,0.00042,120]
[337142618,1725453741364,-317.02189221,0.00042,60]
[337142619,1725453741387,-2588.98,0.0004208,48]
[337142620,1725453741410,-336.14719747,0.00042191,120]
[337142621,1725453741435,-500.0,0.00042199,120]
[337142622,1725453741458,-486.25817122,0.000422,120]
[337142623,1725453741481,-1037.71891896,0.000422,120]
[337142624,1725453741504,-268.342,0.0004222,30]
[337142625,1725453741527,-2500.0,0.00042237,90]
[337142626,1725453741549,-500.0,0.00042239,120]
[337142627,1725453741572,-150.0,0.0004225,30]
[337142628,1725453741595,-311.36104423,0.0004229,120]
[337142629,1725453741617,-2528.04638836,0.000423,120]
[337142630,1725453741640,-930.0,0.00042392,120]
[337142631,1725453741666,-930.0,0.00042392,120]
[337142632,1725453741689,-930.0,0.00042392,120]
[337142633,1725453741713,-500000.0,0.0004244,30]
[337142634,1725453741737,-151.0,0.00042466,120]
[337142635,1725453741760,-2000.0,0.00042507,120]
[337142636,1725453741784,-200.0,0.0004258,120]
[337142637,1725453741807,-1025.10960702,0.000428,60]
[337142638,1725453741830,-1162149.0,0.000428,30]
[337142639,1725453741857,-500.0,0.00042873,120]
[337142640,1725453741881,-250.15101045,0.0004288,120]
[337142641,1725453741905,-5000.0,0.000429,90]
[337142642,1725453741929,-5000.0,0.000429,120]
[337142643,1725453741953,-78605.44183036,0.000429,120]
[337142644,1725453741977,-10611.84718032,0.000429,60]
[337142645,1725453742001,-382.01299806,0.000429,60]
[337142646,1725453742025,-3330.6,0.00042943,94]
[337142647,1725453742049,-2709308.799575,0.0004298,30]
[337142648,1725453749403,600.0,0.00013,2]
[337142649,1725453750236,-270040.10425087,0.0004298,30]
[337142650,1725453750260,-150.03,0.0004298,30]
[337142651,1725453750288,-50000.0,0.00043,33]
[337142652,1725453750315,-50000.0,0.00043,43]
[337142653,1725453750338,-3028.53198553,0.00043,30]
[337142654,1725453750362,-50000.0,0.00043,30]
[337142655,1725453750385,-1000.0,0.00043,120]
[337142656,1725453750410,-1000.0,0.00043,120]
[337142657,1725453750433,-1000.0,0.00043,120]
[337142658,1725453750457,-1000.0,0.00043,120]
[337142659,1725453750480,-1000.0,0.00043,120]
[337142660,1725453750505,-887.47774955,0.00043,120]
[337142661,1725453750529,-466.4333593,0.00043,30]
[337142662,1725453750552,-602.81341767,0.00043,30]
[337142663,1725453750575,-494.4130596,0.00043,30]
[337142664,1725453750599,-314.15867502,0.00043,120]
[337142665,1725453750625,-4529.81433339,0.00043,30]
[337142666,1725453750648,-546.78751615,0.00043,30]
[337142667,1725453750884,-2111.97424649,0.00043,120]
[337142668,1725453750909,-898210.0,0.00043,30]
[337142669,1725453750935,-1000000.0,0.00043,120]
[337142670,1725453750959,-1500.0,0.00043,120]
[337142671,1725453750983,-24046.56712271,0.00043,120]
[337142672,1725453751007,-150.0,0.00043,120]
[337142673,1725453751031,-527.70457321,0.00043,30]
[337142674,1725453751055,-232980.2942052,0.00043,33]
[337142675,1725453751078,-2463.45934686,0.00043,120]
[337142676,1725453751101,-611.17950006,0.00043,120]
[337142677,1725453751124,-185.13,0.00043014,120]
[337142678,1725453751146,-100000.0,0.00043222,30]
[337142679,1725453751170,-2000.0,0.0004326,120]
[337142680,1725453751196,-1044.52,0.00043296,120]
[337142681,1725453751219,-70000.0,0.000433,30]
[337142682,1725453751242,-151.0,0.00043315,120]
[337142683,1725453751265,-500.0,0.00043399,120]
[337142684,1725453751288,-151.0,0.00043425,120]
[337142685,1725453751310,-500000.0,0.0004344,30]
[337142686,1725453751333,-458.86018853,0.00043516,120]
[337142687,1725453751647,-20613.49261857,0.0004361,60]
[337142688,1725453751676,-410.92604071,0.000437,120]
[337142689,1725453751702,-493.06,0.000437,30]
[337142690,1725453751726,-923.91141558,0.000437,120]
[337142691,1725453751752,-2009.0,0.0004379,120]
[337142692,1725453751774,-465.55959743,0.000438,30]
[337142693,1725453751798,-2000.0,0.000438,30]
[337142694,1725453751821,-833.6023794,0.000438,120]
[337142695,1725453751844,-1127.11698238,0.000438,111]
[337142696,1725453751868,-2615.08,0.00043835,120]
[337142697,1725453751891,-155.32723874,0.00043835,120]
[337142698,1725453751914,-662.4663573,0.00043835,120]
[337142699,1725453751940,-1000.0,0.00043836,32]
[337142700,1725453751963,-1000.0,0.00043836,32]
[337142701,1725453751986,-10000.0,0.000439,120]
[337142702,1725453752013,-50000.0,0.00044,34]
[337142703,1725453752038,-50000.0,0.00044,44]
[337142704,1725453752061,-2000.0,0.00044,120]
[337142705,1725453752085,-52000.0,0.00044,30]
[337142706,1725453752108,-1000000.0,0.00044,120]
[337142707,1725453752131,-665.44899232,0.00044,120]
[337142708,1725453752155,-1000000.0,0.00044,120]
[337142709,1725453752178,-2469.0,0.00044,120]
[337142710,1725453752203,-500.389733,0.00044,57]
[337142711,1725453752226,-5000.0,0.00044012,30]
[337142712,1725453752249,-5000.0,0.00044012,30]
[337142713,1725453752272,-2000.0,0.00044014,120]
[337142714,1725453752295,-5000.0,0.00044019,30]
[337142715,1725453752319,-5000.0,0.00044037,30]
[337142716,1725453752342,-1489.41,0.00044053,30]
[337142717,1725453752365,-5000.0,0.00044077,30]
[337142718,1725453752388,-5000.0,0.00044079,30]
[337142719,1725453752411,-5000.0,0.00044081,30]
[337142720,1725453752434,-1384.7,0.00044094,30]
[337142721,1725453752458,-5000.0,0.00044112,30]
[337142722,1725453752482,-5000.0,0.00044155,30]
[337142723,1725453752504,-3460.97,0.00044159,30]
[337142724,1725453752527,-2331.08,0.00044159,30]
[337142725,1725453752550,-25000.0,0.0004416,30]
[337142726,1725453752574,-200.0,0.00044161,120]
[337142727,1725453752597,-249.24,0.00044191,30]
[337142728,1725453752621,-201.15672529,0.000442,120]
[337142729,1725453752644,-307.49,0.00044219,30]
[337142730,1725453752671,-5000.0,0.0004422,30]
[337142731,1725453752696,-5000.0,0.00044231,30]
[337142732,1725453752718,-2001.52,0.00044259,30]
[337142733,1725453752743,-5000.0,0.00044268,30]
[337142734,1725453752770,-4483.09,0.00044311,30]
[337142735,1725453752794,-5000.0,0.00044316,30]
[337142736,1725453752817,-5000.0,0.00044358,30]
[337142737,1725453752841,-5000.0,0.00044359,30]
[337142738,1725453752864,-782.14,0.0004436,30]
[337142739,1725453752887,-2615.08,0.00044383,120]
[337142740,1725453752911,-151.0,0.00044384,120]
[337142741,1725453752936,-10919.13,0.00044384,120]
[337142742,1725453752970,-511363.0,0.0004444,30]
[337142743,1725453752994,-5000.0,0.00044463,30]
[337142744,1725453753017,-25000.0,0.0004448,30]
[337142745,1725453753041,-24642.7,0.00044486,30]
[337142746,1725453753064,-25000.0,0.0004449,30]
[337142747,1725453753088,-1576.79,0.00044524,30]
[337142748,1725453753112,-500.0,0.00044599,120]
[337142749,1725453753136,-5000.0,0.00044718,30]
[337142750,1725453753160,-5000.0,0.00044722,30]
[337142751,1725453753183,-4950.41,0.00044724,30]
[337142752,1725453753210,-5000.0,0.00044725,30]
[337142753,1725453753232,-2000.0,0.00044768,120]
[337142754,1725453753255,-5000.0,0.00044794,30]
[337142755,1725453753278,-5000.0,0.00044797,30]
[337142756,1725453753302,-2500.0,0.000448,120]
[337142757,1725453753325,-5000.0,0.0004485,30]
[337142758,1725453753349,-5000.0,0.00044882,30]
[337142759,1725453753373,-2366.58,0.00044894,30]
[337142760,1725453753398,-198.85499081,0.000449,120]
[337142761,1725453753424,-2791.18,0.00044922,30]
[337142762,1725453753456,-4254.94,0.00044924,30]
[337142763,1725453753484,-2615.08,0.00044931,120]
[337142764,1725453753515,-5000.0,0.00044962,30]
[337142765,1725453753542,-927.83,0.0004498,30]
[337142766,1725453753570,-1000.0,0.00044999,120]
[337142767,1725453753600,-50000.0,0.00045,35]
[337142768,1725453753629,-50000.0,0.00045,45]
[337142769,1725453753656,-185.88970151,0.00045,30]
[337142770,1725453753690,-50000.0,0.00045,32]
[337142771,1725453753722,-150.0,0.00045,85]
[337142772,1725453753749,-163.55214763,0.00045,120]
[337142773,1725453753778,-880.59682267,0.00045,120]
[337142774,1725453753806,-5474.1319171,0.00045,120]
[337142775,1725453753835,-300.0,0.00045,120]
[337142776,1725453753865,-578485.82280942,0.00045,120]
[337142777,1725453768870,-150.0,0.00032035,120]
[337142778,1725453768910,-900.0,0.00042,120]
[337142779,1725453769239,-201.15672525,0.000442,120]
[337142780,1725453769264,-201.15672525,0.000442,120]
[337142781,1725453769288,-201.15672525,0.000442,120]
[337142782,1725453769313,-421514.17719058,0.00045,120]
[337142783,1725453769337,-663.97675798,0.00045,120]
[337142784,1725453769361,-3292.74372865,0.00045,120]
[337142785,1725453769386,-175.615729,0.00045,120]
[337142786,1725453769411,-21952.98686802,0.00045,120]
[337142787,1725453769435,-50000.0,0.00045,120]
[337142788,1725453769460,-2000.0,0.00045,120]
[337142789,1725453769484,-11080.1967096,0.00045,120]
[337142790,1725453769507,-239.58717336,0.00045,120]
[337142791,1725453769531,-166.11365614,0.00045,40]
[337142792,1725453769556,-163.00560409,0.00045,120]
[337142793,1725453769579,-592.01764393,0.00045,120]
[337142794,1725453769603,-319.0,0.00045,120]
[337142795,1725453769628,-419.0,0.00045,120]
[337142796,1725453769652,-500.0,0.00045,120]
[337142797,1725453769681,-200.0,0.00045,120]
[337142798,1725453769707,-408.0,0.00045,120]
[337142799,1725453769731,-15000.0,0.00045,60]
[337142800,1725453769766,-1614.76085282,0.00045,90]
[337142801,1725453769790,-150.0,0.00045,120]
[337142802,1725453769814,-1000.0,0.00045,120]
[337142803,1725453769839,-320.0,0.00045,120]
[337142804,1725453769864,-103340.0,0.00045222,120]
[337142805,1725453769890,-151.0,0.00045342,120]
[337142806,1725453769915,-2615.08,0.00045479,120]
[337142807,1725453769940,-1000000.0,0.000455,120]
[337142808,1725453769964,-2000.0,0.00045522,120]
[337142809,1725453769988,-543.48673279,0.00045533,120]
[337142810,1725453770012,-166.14226325,0.000456,120]
[337142811,1725453770036,-155999.89707181,0.000457,60]
[337142812,1725453770060,-200.0,0.00045742,120]
[337142813,1725453770084,-500.0,0.00045799,120]
[337142814,1725453770107,-59445.22,0.00045867,120]
[337142815,1725453770130,-1000.0,0.00045999,120]
[337142816,1725453770156,-50000.0,0.00046,46]
[337142817,1725453770180,-800.0,0.00046,120]
[337142818,1725453770204,-2000.0,0.00046,120]
[337142819,1725453770229,-170.3,0.00046,96]
[337142820,1725453770253,-1000000.0,0.00046,120]
[337142821,1725453770276,-3079.32418358,0.00046,120]
[337142822,1725453770300,-763.97437508,0.00046,120]
[337142823,1725453770325,-2615.08,0.00046027,120]
[337142824,1725453770350,-2000.0,0.00046275,120]
[337142825,1725453770375,-151.0,0.00046301,120]
[337142826,1725453770399,-7172.2,0.00046357,113]
[337142827,1725453770422,-14237.57774664,0.000464,60]
[337142828,1725453770447,-1044.52,0.00046457,120]
[337142829,1725453770472,-2661.0,0.00046498,66]
[337142830,1725453770496,-412.71124369,0.000465,120]
[337142831,1725453770519,-3822.8938497,0.00046534,120]
[337142832,1725453770544,-10116.0,0.00046555,90]
[337142833,1725453770567,-2615.08,0.00046575,120]
[337142834,1725453770590,-349.78,0.0004666,120]
[337142835,1725453770614,-175.56496148,0.00046704,40]
[337142836,1725453770636,-153.99406146,0.00046704,40]
[337142837,1725453770660,-191.47947202,0.00046704,40]
[337142838,1725453770688,-222.08286918,0.00046704,40]
[337142839,1725453770713,-2000.0,0.000468,60]
[337142840,1725453770737,-351549.30674903,0.000468,120]
[337142841,1725453770764,-499999.0,0.000468,120]
[337142842,1725453770788,-499999.0,0.000468,120]
[337142843,1725453770812,-499999.0,0.000468,120]
[337142844,1725453770836,-499999.0,0.000468,120]
[337142845,1725453770860,-475043.02553247,0.000468,120]
[337142846,1725453770885,-43640.90127347,0.000468,120]
[337142847,1725453770911,-499999.0,0.000468,120]
[337142848,1725453770936,-499999.0,0.000468,120]
[337142849,1725453770961,-1099.99999994,0.000468,120]
[337142850,1725453770987,-10463.9083902,0.000468,120]
[337142851,1725453771012,-9816.60931423,0.000468,120]
[337142852,1725453771036,-10505.8991335,0.000468,120]
[337142853,1725453771061,-10149.54006154,0.000468,120]
[337142854,1725453771086,-5000.0,0.000469,90]
[337142855,1725453771111,-116596.76862502,0.000469,120]
[337142856,1725453776703,-201.15672525,0.000442,120]
[337142857,1725453776729,-433176.69137498,0.000469,120]
[337142858,1725453776754,-217.15254273,0.000469,90]
[337142859,1725453776778,-410.0,0.00046986,120]
[337142860,1725453776802,-1000.0,0.00046999,120]
[337142861,1725453776826,-500.0,0.00046999,120]
[337142862,1725453776854,-50000.0,0.00047,47]
[337142863,1725453776879,-2000.36268958,0.00047,120]
[337142864,1725453776905,-3032.9921777,0.00047,60]
[337142865,1725453776930,-50000.0,0.00047,120]
[337142866,1725453776956,-150.0,0.00047,120]
[337142867,1725453776980,-2000.0,0.00047029,120]
[337142868,1725453777004,-2615.08,0.00047123,120]
[337142869,1725453777028,-151.0,0.0004726,120]
[337142870,1725453777052,-200.0,0.00047324,120]
[337142871,1725453777075,-563.0,0.000475,120]
[337142872,1725453777099,-2615.08,0.00047671,120]
[337142873,1725453777123,-10217.0,0.000477,55]
[337142874,1725453777146,-2000.0,0.00047783,120]
[337142875,1725453777170,-180.73617784,0.000478,120]
[337142876,1725453777194,-200.3926801,0.00047815,120]
[337142877,1725453777219,-410.0,0.00047986,120]
[337142878,1725453777242,-1000.0,0.00047999,120]
[337142879,1725453777267,-50000.0,0.00048,48]
[337142880,1725453777293,-160.0,0.00048,90]
[337142881,1725453777315,-2000.0,0.00048,120]
[337142882,1725453777338,-20167.72921444,0.00048,120]
[337142883,1725453777360,-500.0,0.00048,120]
[337142884,1725453777383,-500.0,0.00048,120]
[337142885,1725453777405,-500.0,0.00048,120]
[337142886,1725453777427,-1585.09483036,0.00048,120]
[337142887,1725453777451,-72762.55399977,0.00048,120]
[337142888,1725453777473,-7644.46447908,0.00048,120]
[337142889,1725453777497,-5386.72991959,0.00048,120]
[337142890,1725453777519,-171.5943068,0.00048,60]
[337142891,1725453777542,-15051.00838734,0.00048,120]
[337142892,1725453777565,-17974.43904529,0.00048,120]
[337142893,1725453777589,-542.51,0.00048,120]
[337142894,1725453777612,-3079.32418357,0.00048,120]
[337142895,1725453777634,-763.97437509,0.00048,120]
[337142896,1725453777657,-500.0,0.00048199,120]
[337142897,1725453777683,-2615.08,0.00048219,120]
[337142898,1725453777706,-151.0,0.00048219,120]
[337142899,1725453777729,-2000.0,0.000483,60]
[337142900,1725453777753,-590.0,0.0004835,120]
[337142901,1725453777776,-919.0,0.000485,120]
[337142902,1725453777800,-2000.0,0.00048537,120]
[337142903,1725453777822,-500.0,0.000487,120]
[337142904,1725453777846,-2615.08,0.00048767,120]
[337142905,1725453777868,-410.52871236,0.000488,120]
[337142906,1725453777892,-880.85683504,0.000488,120]
[337142907,1725453777915,-346.39296113,0.000488,120]
[337142908,1725453777939,-1136.13031101,0.000489,120]
[337142909,1725453777961,-200.0,0.00048905,120]
[337142910,1725453777984,-1000.0,0.00048999,120]
[337142911,1725453778010,-50000.0,0.00049,49]
[337142912,1725453778033,-954.89518577,0.00049,120]
[337142913,1725453778058,-177381.39811889,0.00049,120]
[337142914,1725453778080,-531.17056646,0.00049,120]
[337142915,1725453778103,-150.0,0.00049,120]
[337142916,1725453778126,-307.49,0.00049012,120]
[337142917,1725453778149,-5000.0,0.00049022,120]
[337142918,1725453778171,-1880.52,0.00049063,120]
[337142919,1725453778194,-5000.0,0.00049066,120]
[337142920,1725453778217,-4921.41,0.00049096,120]
[337142921,1725453778240,-249.25,0.00049139,120]
[337142922,1725453778263,-5000.0,0.00049142,120]
[337142923,1725453778553,-5000.0,0.00049148,120]
[337142924,1725453778578,-5000.0,0.00049171,120]
[337142925,1725453778602,-151.0,0.00049178,120]
[337142926,1725453778625,-5000.0,0.00049192,120]
[337142927,1725453778648,-5000.0,0.00049276,120]
[337142928,1725453778674,-2000.0,0.00049291,120]
[337142929,1725453778699,-2615.08,0.00049315,120]
[337142930,1725453778727,-4202.94,0.00049315,120]
[337142931,1725453778751,-2112.66589022,0.00049315,120]
[337142932,1725453778775,-280.01244896,0.00049315,120]
[337142933,1725453778800,-500.0,0.00049315,120]
[337142934,1725453778824,-2317.96,0.00049325,120]
[337142935,1725453778848,-500.0,0.00049399,120]
[337142936,1725453778871,-2366.59,0.00049423,120]
[337142937,1725453778896,-5000.0,0.00049426,120]
[337142938,1725453778920,-500000.0,0.0004944,120]
[337142939,1725453778946,-1432.38,0.00049452,120]
[337142940,1725453778970,-782.14,0.00049467,120]
[337142941,1725453778995,-20000.0,0.0004949,120]
[337142942,1725453779018,-20000.0,0.0004949,120]
[337142943,1725453779044,-20000.0,0.0004949,120]
[337142944,1725453779068,-20000.0,0.0004949,120]
[337142945,1725453779091,-20000.0,0.0004949,120]
[337142946,1725453779117,-12722.76877573,0.0004949,120]
[337142947,1725453779142,-2500.0,0.0004949,120]
[337142948,1725453779164,-20000.0,0.0004949,120]
[337142949,1725453779187,-20000.0,0.0004949,120]
[337142950,1725453779211,-7124.04957215,0.0004949,120]
[337142951,1725453779233,-427.52683349,0.000495,120]
[337142952,1725453779258,-5000.0,0.00049517,120]
[337142953,1725453779281,-5000.0,0.00049527,120]
[337142954,1725453779305,-1384.71,0.00049547,120]
[337142955,1725453779329,-2791.18,0.0004955,120]
[337142956,1725453779353,-4384.09,0.00049584,120]
[337142957,1725453779377,-500.0,0.00049589,120]
[337142958,1725453779400,-25000.0,0.00049605,120]
[337142959,1725453779424,-1044.52,0.00049619,120]
[337142960,1725453779450,-5000.0,0.00049631,120]
[337142961,1725453779474,-24098.71,0.00049639,120]
[337142962,1725453779498,-5000.0,0.00049645,120]
[337142963,1725453779522,-5000.0,0.0004971,120]
[337142964,1725453779545,-5000.0,0.00049713,120]
[337142965,1725453779570,-5000.0,0.00049741,120]
[337142966,1725453779594,-7684.5,0.00049771,117]
[337142967,1725453779617,-5000.0,0.00049772,120]
[337142968,1725453779641,-5000.0,0.00049776,120]
[337142969,1725453779664,-5000.0,0.00049798,120]
[337142970,1725453779692,-5000.0,0.00049801,120]
[337142971,1725453779716,-5000.0,0.00049837,120]
[337142972,1725453779741,-3442.97,0.00049846,120]
[337142973,1725453779766,-5000.0,0.00049856,120]
[337142974,1725453779789,-2615.08,0.00049863,120]
[337142975,1725453779813,-500.0,0.00049863,120]
[337142976,1725453779837,-2829.5656586,0.00049866,120]
[337142977,1725453779861,-927.83,0.00049866,120]
[337142978,1725453779885,-1226.79,0.00049868,120]
[337142979,1725453779909,-25000.0,0.00049894,120]
[337142980,1725453779933,-25000.0,0.00049936,120]
[337142981,1725453779957,-5000.0,0.00049953,120]
[337142982,1725453779981,-151.0,0.00049973,120]
[337142983,1725453780007,-5000.0,0.00049975,120]
[337142984,1725453780032,-5000.0,0.00049986,120]
[337142985,1725453780056,-1000.0,0.00049999,120]
[337142986,1725453780084,-50000.0,0.0005,50]
[337142987,1725453780109,-150.0,0.0005,120]
[337142988,1725453780133,-700.0,0.0005,120]
[337142989,1725453780158,-1514.61489103,0.0005,60]
[337142990,1725453780182,-1218.99263141,0.0005,120]
[337142991,1725453780207,-980.62013552,0.0005,120]
[337142992,1725453780230,-2000.0,0.0005,120]
[337142993,1725453780254,-5440.18588211,0.0005,60]
[337142994,1725453780278,-200.0,0.0005,120]
[337142995,1725453780302,-1582.51612532,0.0005,120]
[337142996,1725453780326,-150.0,0.0005,40]
[337142997,1725453780349,-2000.0,0.0005,120]
[337142998,1725453780372,-3035.0,0.0005,120]
[337142999,1725453780398,-8251.91940038,0.0005,120]
[337143000,1725453780423,-1000000.0,0.0005,120]
[337143001,1725453780446,-522.18922218,0.0005,120]
[337143002,1725453780470,-156.99289386,0.0005,120]
[337143003,1725453780494,-2842.09045706,0.0005,120]
[337143004,1725453780517,-2000.0,0.00050044,120]
[337143005,1725453780541,-500.0,0.00050136,120]
[337143006,1725453780565,-151.0,0.00050137,120]
[337143007,1725453780590,-2615.08,0.0005041,120]
[337143008,1725453780613,-500.0,0.0005041,120]
[337143009,1725453780637,-200.0,0.00050486,120]
[337143010,1725453780661,-500.0,0.00050599,120]
[337143011,1725453780691,-500.0,0.00050684,120]
[337143012,1725453780718,-2000.0,0.00050798,120]
[337143013,1725453780742,-2615.08,0.00050958,120]
[337143014,1725453780767,-500.0,0.00050958,120]
[337143015,1725453780790,-1000.0,0.00050999,120]
[337143016,1725453780814,-336.85213986,0.00051,120]
[337143017,1725453780839,-151.0,0.00051096,120]
[337143018,1725453780864,-560.99928409,0.0005123,61]
[337143019,1725453780889,-264.00816576,0.0005123,61]
[337143020,1725453780913,-291.5294856,0.0005123,61]
[337143021,1725453780939,-262.75979742,0.0005123,62]
[337143022,1725453780969,-500.0,0.00051232,120]
[337143023,1725453780994,-2615.08,0.00051506,120]
[337143024,1725453781019,-500.0,0.00051506,120]
[337143025,1725453781043,-318.64993571,0.0005152,120]
[337143026,1725453781068,-289.02329631,0.0005152,120]
[337143027,1725453781300,-295.71828944,0.0005152,120]
[337143028,1725453781325,-290.31925123,0.0005152,120]
[337143029,1725453781352,-271.45298435,0.0005152,120]
[337143030,1725453781377,-515300.0,0.0005155,120]
[337143031,1725453781402,-2000.0,0.00051552,120]
[337143032,1725453781428,-500.0,0.0005178,120]
[337143033,1725453781455,-500.0,0.00051799,120]
[337143034,1725453781480,-1000.0,0.00051999,120]
[337143035,1725453781505,-2000.0,0.00052,120]
[337143036,1725453781529,-2117.75145685,0.00052,120]
[337143037,1725453781552,-155.2550802,0.00052,120]
[337143038,1725453781576,-2615.08,0.00052054,120]
[337143039,1725453781600,-500.0,0.00052054,120]
[337143040,1725453781623,-151.0,0.00052055,120]
[337143041,1725453781647,-458.14,0.00052055,90]
[337143042,1725453781674,-200.0,0.00052067,120]
[337143043,1725453781699,-150.0,0.0005225,40]
[337143044,1725453781725,-2000.0,0.00052306,120]
[337143045,1725453781750,-226.20067944,0.00052328,120]
[337143046,1725453781774,-500.0,0.00052356,120]
[337143047,1725453781798,-500.0,0.00052356,120]
[337143048,1725453781822,-500.0,0.00052356,120]
[337143049,1725453781847,-500.0,0.00052356,120]
[337143050,1725453781871,-500.0,0.00052356,120]
[337143051,1725453781905,-500.0,0.00052356,120]
[337143052,1725453781931,-500.0,0.00052356,120]
[337143053,1725453781958,-500.0,0.00052356,120]
[337143054,1725453781983,-500.0,0.00052356,120]
[337143055,1725453782008,-500.0,0.00052356,120]
[337143056,1725453782032,-500.0,0.00052356,120]
[337143057,1725453782057,-500.0,0.00052356,120]
[337143058,1725453782081,-500.0,0.00052356,120]
[337143059,1725453782106,-164.051639,0.00052356,120]
[337143060,1725453782132,-2615.08,0.00052602,120]
[337143061,1725453782156,-600.0,0.0005265,120]
[337143062,1725453782181,-1044.52,0.0005278,120]
[337143063,1725453782204,-1387.25493934,0.000528,120]
[337143064,1725453782230,-219.52415385,0.000528,120]